[Event "EYCC 2017"]
[Site "Mamaia"]
[Date "2017.09.07"]
[Round "3"]
[White "Kostecka, Marika"]
[Black "Shafigullina, Zarina"]
[Result "1-0"]
[ECO "B28"]
[WhiteElo "1811"]
[BlackElo "2130"]
[Annotator "NA"]
[PlyCount "59"]
[EventDate "2017.??.??"]
[EventType "swiss"]
[EventCountry "ROU"]
[SourceTitle "playchess.com"]
[Source "ChessBase"]
[SourceQuality "1"]
[TimeControl "40/5400+30:1800+30"]

1. e4 {[%emt 0:00:00]} c5 {[%emt 0:00:04]} 2. Nf3 {[%emt 0:00:00]} a6 {[%emt 0:00:13]} 3. c4 {[%emt 0:00:24]} e6 {[%emt 0:00:04]} 4. Nc3 {[%emt 0:01:52]} Qc7 {[%emt 0:00:10]} 5. Be2 {[%emt 0:00:44]} Nc6 {[%emt 0:00:15]} 6. d4 {[%emt 0:05:25]} cxd4 {[%emt 0:00:07]} 7. Nxd4 {[%emt 0:00:15]} Nf6 {[%emt 0:05:33]} 8. a3 {[%emt 0:04:23]} Bc5 {[%emt 0:05:54]} 9. Nc2 {[%emt 0:03:01]} Bd6 {[%emt 0:03:02]} 10. g3 {[%emt 0:02:24]} Be5 {[%emt 0:01:28]} 11. Bd2 {[%emt 0:08:28]} O-O {[%emt 0:02:06]} 12. Bd3 {[%emt 0:04:12]} Na5 {[%emt 0:04:32]} 13. f4 {[%emt 0:07:44]} Bxc3 {[%emt 0:04:37]} 14. Bxc3 {[%emt 0:01:55]} Nxc4 {[%emt 0:01:16]} 15. Bxf6 {[%emt 0:01:11]} gxf6 {[%emt 0:00:03]} 16. Qg4+ {[%emt 0:00:42]} Kh8 {[%emt 0:00:39]} 17. Qh4 {[%emt 0:00:54]} Kg7 {[%emt 0:04:22]} 18. e5 {[%emt 0:01:26]} f5 {[%emt 0:02:58]} 19. Qf6+ {[%emt 0:04:12]} Kg8 {[%emt 0:00:04]} 20. g4 {[%emt 0:12:32]} Nxb2 {[%emt 0:02:26]} 21. Rg1 {[%emt 0:22:08]} Qc3+ {[%emt 0:08:22]} 22. Ke2 {[%emt 0:00:11]} Qxd3+ {[%emt 0:00:40]} 23. Kf2 {[%emt 0:00:14]} Qxc2+ {[%emt 0:05:52]} 24. Kg3 {[%emt 0:00:15]} h6 {[%emt 0:09:00]} 25. g5 {[%emt 0:04:53]} h5 {[%emt 0:12:19]} 26. g6 {[%emt 0:00:10]} Qe2 {[%emt 0:02:48]} 27. Kh4 {[%emt 0:03:41]} Qxh2+ {[%emt 0:00:32]} 28. Kg5 {[%emt 0:00:14]} Nd3 {[%emt 0:08:41]} 29. gxf7+ {[%emt 0:00:43]} Rxf7 {[%emt 0:00:04]} 30. Kh6+ {[%emt 0:00:10]} 1-0

[Event "EYCC 2017"]
[Site "Mamaia"]
[Date "2017.09.07"]
[Round "3"]
[White "Kvendseth, Thyra"]
[Black "Raccanello, Marianna"]
[Result "0-1"]
[ECO "D11"]
[WhiteElo "1810"]
[BlackElo "1906"]
[Annotator "NA"]
[PlyCount "128"]
[EventDate "2017.??.??"]
[EventType "swiss"]
[EventCountry "ROU"]
[SourceTitle "playchess.com"]
[Source "ChessBase"]
[SourceQuality "1"]
[TimeControl "40/5400+30:1800+30"]

1. d4 {[%emt 0:00:00]} d5 {[%emt 0:00:08]} 2. c4 {[%emt 0:00:00]} c6 {[%emt 0:00:04]} 3. Nf3 {[%emt 0:00:00]} Nf6 {[%emt 0:00:12]} 4. e3 {[%emt 0:00:00]} e6 {[%emt 0:00:12]} 5. b3 {[%emt 0:00:00]} Nbd7 {[%emt 0:00:20]} 6. Bd3 {[%emt 0:00:18]} Bd6 {[%emt 0:02:38]} 7. Bb2 {[%emt 0:00:31]} O-O {[%emt 0:00:19]} 8. O-O {[%emt 0:00:05]} Qe7 {[%emt 0:02:34]} 9. Ne5 {[%emt 0:07:59]} c5 {[%emt 0:09:41]} 10. f4 {[%emt 0:09:56]} b6 {[%emt 0:14:35]} 11. Nd2 {[%emt 0:07:18]} Bb7 {[%emt 0:00:16]} 12. Qc2 {[%emt 0:10:17]} Rfd8 {[%emt 0:11:50]} 13. Ndf3 {[%emt 0:04:14]} Ne4 {[%emt 0:01:57]} 14. Nxd7 {[%emt 0:05:29]} Rxd7 {[%emt 0:01:59]} 15. Qe2 {[%emt 0:01:15]} cxd4 {[%emt 0:10:52]} 16. Nxd4 {[%emt 0:05:19]} Bc5 {[%emt 0:01:59]} 17. cxd5 {[%emt 0:07:48]} Bxd5 {[%emt 0:03:27]} 18. Rad1 {[%emt 0:04:57]} Rc8 {[%emt 0:02:36]} 19. Nf3 {[%emt 0:02:57]} Bb4 {[%emt 0:05:48]} 20. Rc1 {[%emt 0:03:27]} Rdc7 {[%emt 0:04:58]} 21. Rxc7 {[%emt 0:03:46]} Qxc7 {[%emt 0:02:42]} 22. Bxe4 {[%emt 0:03:29]} Bxe4 {[%emt 0:00:23]} 23. Nd4 {[%emt 0:00:36]} Qb7 {[%emt 0:03:20]} 24. Rd1 {[%emt 0:03:49]} h6 {[%emt 0:05:13]} 25. a3 {[%emt 0:03:15]} Be7 {[%emt 0:03:07]} 26. Rd2 {[%emt 0:00:35]} Qd5 {[%emt 0:02:04]} 27. b4 {[%emt 0:01:57]} Rd8 {[%emt 0:01:38]} 28. Bc3 {[%emt 0:00:23]} Bf6 {[%emt 0:01:29]} 29. Qa6 {[%emt 0:04:16]} Qa8 {[%emt 0:04:32]} 30. Qb5 {[%emt 0:03:37]} Qc8 {[%emt 0:00:52]} 31. Bb2 {[%emt 0:00:57]} Rd5 {[%emt 0:00:39]} 32. Qe2 {[%emt 0:00:16]} Qd7 {[%emt 0:00:30]} 33. Qf2 {[%emt 0:01:32]} b5 {[%emt 0:03:26]} 34. Qe2 {[%emt 0:00:47]} a6 {[%emt 0:00:03]} 35. Qg4 {[%emt 0:00:57]} Kh7 {[%emt 0:01:05]} 36. Qe2 {[%emt 0:01:52]} Qd6 {[%emt 0:00:21]} 37. Qf2 {[%emt 0:00:38]} Qd7 {[%emt 0:00:28]} 38. h3 {[%emt 0:00:17]} Qd6 {[%emt 0:00:24]} 39. Qe2 {[%emt 0:01:07]} Kh8 {[%emt 0:00:31]} 40. Qf2 {[%emt 0:00:00]} Kh7 {[%emt 0:00:05]} 41. Rd1 {[%emt 0:04:22]} Qd8 {[%emt 0:09:24]} 42. Bc3 {[%emt 0:01:15]} Bh4 {[%emt 0:02:30]} 43. g3 {[%emt 0:00:48]} Bf6 {[%emt 0:00:48]} 44. Rc1 {[%emt 0:03:46]} Rd7 {[%emt 0:02:00]} 45. Rd1 {[%emt 0:04:26]} Qc8 {[%emt 0:01:26]} 46. Bb2 {[%emt 0:00:46]} Rc7 {[%emt 0:00:30]} 47. Qd2 {[%emt 0:02:08]} e5 {[%emt 0:02:09]} 48. fxe5 {[%emt 0:01:49]} Bxe5 {[%emt 0:00:05]} 49. g4 {[%emt 0:02:01]} h5 {[%emt 0:07:41]} 50. Qe2 {[%emt 0:01:37]} Kg8 {[%emt 0:06:33]} 51. Rd2 {[%emt 0:01:31]} Rc4 {[%emt 0:02:51]} 52. Rd1 {[%emt 0:05:01]} Qb7 {[%emt 0:00:43]} 53. Rd2 {[%emt 0:01:28]} Qc8 {[%emt 0:00:16]} 54. Rd1 {[%emt 0:00:07]} Qc7 {[%emt 0:00:22]} 55. Rd2 {[%emt 0:00:26]} Qc8 {[%emt 0:00:23]} 56. Rd1 {[%emt 0:00:06]} Qb7 {[%emt 0:00:35]} 57. Rd2 {[%emt 0:00:10]} Qc7 {[%emt 0:00:16]} 58. Rd1 {[%emt 0:00:09]} Bxd4 {[%emt 0:00:18]} 59. Rxd4 {[%emt 0:02:11]} Rc2 {[%emt 0:00:22]} 60. Rd2 {[%emt 0:00:59]} Qg3+ {[%emt 0:00:05]} 61. Kf1 {[%emt 0:00:35]} Qxh3+ {[%emt 0:00:32]} 62. Ke1 {[%emt 0:01:26]} Qh1+ {[%emt 0:00:06]} 63. Kf2 {[%emt 0:00:06]} Qg2+ {[%emt 0:00:07]} 64. Ke1 {[%emt 0:00:03]} Qg1+ {[%emt 0:00:12]} 0-1

[Event "EYCC 2017"]
[Site "Mamaia"]
[Date "2017.09.07"]
[Round "3"]
[White "Toncheva, Nadya"]
[Black "Goraj, Barbara"]
[Result "1-0"]
[ECO "E73"]
[WhiteElo "1802"]
[BlackElo "1711"]
[Annotator "NA"]
[PlyCount "93"]
[EventDate "2017.??.??"]
[EventType "swiss"]
[EventCountry "ROU"]
[SourceTitle "playchess.com"]
[Source "ChessBase"]
[SourceQuality "1"]
[TimeControl "40/5400+30:1800+30"]

1. d4 {[%emt 0:00:00]} Nf6 {[%emt 0:00:08]} 2. c4 {[%emt 0:00:00]} g6 {[%emt 0:00:11]} 3. Nc3 {[%emt 0:00:00]} Bg7 {[%emt 0:00:11]} 4. e4 {[%emt 0:00:00]} d6 {[%emt 0:00:11]} 5. Be2 {[%emt 0:00:00]} O-O {[%emt 0:00:27]} 6. Bg5 {[%emt 0:00:00]} c5 {[%emt 0:00:21]} 7. d5 {[%emt 0:00:00]} h6 {[%emt 0:00:26]} 8. Be3 {[%emt 0:00:00]} e6 {[%emt 0:00:27]} 9. Qd2 {[%emt 0:00:03]} exd5 {[%emt 0:00:32]} 10. exd5 {[%emt 0:00:03]} Kh7 {[%emt 0:03:13]} 11. h4 {[%emt 0:00:15]} Re8 {[%emt 0:08:03]} 12. Kf1 {[%emt 0:11:50]} Ng4 {[%emt 0:07:08]} 13. Bf4 {[%emt 0:00:26]} a6 {[%emt 0:11:51]} 14. Bxg4 {[%emt 0:11:23]} Bxg4 {[%emt 0:02:02]} 15. f3 {[%emt 0:01:15]} Bc8 {[%emt 0:00:47]} 16. Ne4 {[%emt 0:00:17]} Bf8 {[%emt 0:02:43]} 17. Bg5 {[%emt 0:05:35]} Be7 {[%emt 0:07:59]} 18. Bxh6 {[%emt 0:00:27]} Bf5 {[%emt 0:07:47]} 19. Ng5+ {[%emt 0:09:37]} Bxg5 {[%emt 0:02:02]} 20. Bxg5 {[%emt 0:00:04]} f6 {[%emt 0:00:19]} 21. g4 {[%emt 0:00:55]} Bxg4 {[%emt 0:01:45]} 22. fxg4 {[%emt 0:00:10]} fxg5 {[%emt 0:00:29]} 23. hxg5+ {[%emt 0:00:03]} Kg8 {[%emt 0:01:12]} 24. Qc3 {[%emt 0:01:19]} Re5 {[%emt 0:07:48]} 25. Nf3 {[%emt 0:00:26]} Nd7 {[%emt 0:01:03]} 26. Nxe5 {[%emt 0:00:21]} Nxe5 {[%emt 0:00:26]} 27. Qh3 {[%emt 0:00:51]} Qf8+ {[%emt 0:00:42]} 28. Kg2 {[%emt 0:00:24]} Qg7 {[%emt 0:00:15]} 29. b3 {[%emt 0:06:40]} b5 {[%emt 0:01:42]} 30. Qe3 {[%emt 0:04:34]} Rf8 {[%emt 0:01:20]} 31. Raf1 {[%emt 0:00:38]} bxc4 {[%emt 0:01:44]} 32. Rxf8+ {[%emt 0:00:32]} Qxf8 {[%emt 0:00:30]} 33. bxc4 {[%emt 0:00:28]} Qb8 {[%emt 0:00:50]} 34. Rf1 {[%emt 0:02:04]} Qc8 {[%emt 0:06:53]} 35. Qe4 {[%emt 0:05:57]} Qd7 {[%emt 0:01:33]} 36. Rf6 {[%emt 0:01:25]} Kg7 {[%emt 0:00:40]} 37. Re6 {[%emt 0:01:44]} Qa4 {[%emt 0:07:52]} 38. Qe2 {[%emt 0:02:17]} Qd7 {[%emt 0:00:44]} 39. Qf2 {[%emt 0:01:26]} Nxg4 {[%emt 0:00:59]} 40. Qh4 {[%emt 0:00:00]} Ne5 {[%emt 0:00:26]} 41. Qh6+ {[%emt 0:01:27]} Kg8 {[%emt 0:00:11]} 42. Rxg6+ {[%emt 0:02:14]} Nxg6 {[%emt 0:00:10]} 43. Qxg6+ {[%emt 0:00:02]} Kh8 {[%emt 0:01:04]} 44. Qh6+ {[%emt 0:00:05]} Kg8 {[%emt 0:00:11]} 45. Qe6+ {[%emt 0:00:18]} Qxe6 {[%emt 0:00:18]} 46. dxe6 {[%emt 0:00:04]} Kf8 {[%emt 0:00:23]} 47. g6 {[%emt 0:00:06]} 1-0

[Event "EYCC 2017"]
[Site "Mamaia"]
[Date "2017.09.07"]
[Round "3"]
[White "Mkrtchyan, Mariam"]
[Black "Garifullina, Leya"]
[Result "1/2-1/2"]
[ECO "D02"]
[WhiteElo "1794"]
[BlackElo "1970"]
[Annotator "NA"]
[PlyCount "116"]
[EventDate "2017.??.??"]
[EventType "swiss"]
[EventCountry "ROU"]
[SourceTitle "playchess.com"]
[Source "ChessBase"]
[SourceQuality "1"]
[TimeControl "40/5400+30:1800+30"]

1. d4 {[%emt 0:00:00]} d5 {[%emt 0:00:48]} 2. Nf3 {[%emt 0:00:00]} Nf6 {[%emt 0:01:16]} 3. c4 {[%emt 0:00:00]} c6 {[%emt 0:01:36]} 4. Qc2 {[%emt 0:00:20]} g6 {[%emt 0:01:40]} 5. Bf4 {[%emt 0:00:26]} dxc4 {[%emt 0:08:00]} 6. Qxc4 {[%emt 0:01:11]} Be6 {[%emt 0:02:51]} 7. Qc1 {[%emt 0:04:15]} Bg7 {[%emt 0:04:29]} 8. Bh6 {[%emt 0:09:09]} O-O {[%emt 0:02:47]} 9. Bxg7 {[%emt 0:01:57]} Kxg7 {[%emt 0:00:09]} 10. Nc3 {[%emt 0:01:16]} Bg4 {[%emt 0:07:05]} 11. e3 {[%emt 0:04:15]} Nbd7 {[%emt 0:03:14]} 12. Be2 {[%emt 0:03:23]} Bxf3 {[%emt 0:03:19]} 13. Bxf3 {[%emt 0:01:12]} e5 {[%emt 0:01:21]} 14. Qd2 {[%emt 0:02:55]} exd4 {[%emt 0:01:37]} 15. Qxd4 {[%emt 0:00:22]} Qb6 {[%emt 0:01:53]} 16. Qxb6 {[%emt 0:05:22]} axb6 {[%emt 0:01:34]} 17. O-O {[%emt 0:05:49]} b5 {[%emt 0:02:03]} 18. Rfd1 {[%emt 0:07:04]} Nc5 {[%emt 0:04:31]} 19. Ne2 {[%emt 0:07:32]} Rfd8 {[%emt 0:03:14]} 20. Rxd8 {[%emt 0:06:30]} Rxd8 21. Nd4 Ra8 {[%emt 0:03:47]} 22. Be2 {[%emt 0:07:27]} Nd5 {[%emt 0:06:21]} 23. Rc1 {[%emt 0:06:30]} Na4 {[%emt 0:05:50]} 24. Rb1 {[%emt 0:00:50]} Kf6 {[%emt 0:05:35]} 25. a3 {[%emt 0:06:16]} Nc5 {[%emt 0:04:57]} 26. Rc1 {[%emt 0:02:19]} Ne6 {[%emt 0:02:08]} 27. Nc2 {[%emt 0:02:47]} Nb6 {[%emt 0:02:16]} 28. Nb4 {[%emt 0:04:51]} Rd8 {[%emt 0:01:14]} 29. Rc2 {[%emt 0:01:58]} Nd5 {[%emt 0:06:32]} 30. Nd3 {[%emt 0:05:58]} Ndc7 {[%emt 0:03:45]} 31. Kf1 {[%emt 0:01:23]} Na6 {[%emt 0:02:39]} 32. Nc1 {[%emt 0:01:38]} h5 {[%emt 0:01:43]} 33. h4 {[%emt 0:00:33]} Nac5 {[%emt 0:00:37]} 34. Ke1 {[%emt 0:00:32]} Ke7 {[%emt 0:01:59]} 35. Bf1 {[%emt 0:00:36]} Ne4 {[%emt 0:01:37]} 36. Be2 {[%emt 0:00:33]} Nd6 {[%emt 0:01:10]} 37. Bf1 {[%emt 0:00:31]} c5 {[%emt 0:00:44]} 38. Nd3 {[%emt 0:00:36]} c4 {[%emt 0:00:59]} 39. Nb4 {[%emt 0:00:19]} Ne4 {[%emt 0:01:06]} 40. Be2 {[%emt 0:00:00]} N4c5 {[%emt 0:01:13]} 41. Bf3 {[%emt 0:09:11]} Nc7 {[%emt 0:01:49]} 42. Ke2 {[%emt 0:05:02]} Nd3 {[%emt 0:02:40]} 43. b3 {[%emt 0:14:12]} Ne5 {[%emt 0:12:37]} 44. Bxb7 {[%emt 0:02:07]} Rb8 {[%emt 0:00:11]} 45. Be4 {[%emt 0:01:03]} f5 {[%emt 0:00:28]} 46. Bf3 {[%emt 0:00:39]} Kd6 {[%emt 0:03:18]} 47. Rd2+ {[%emt 0:01:19]} Ke6 {[%emt 0:01:39]} 48. bxc4 {[%emt 0:01:03]} bxc4 {[%emt 0:01:16]} 49. Nd5 {[%emt 0:00:34]} Nb5 {[%emt 0:01:22]} 50. a4 {[%emt 0:00:16]} Nd6 {[%emt 0:02:15]} 51. Nc7+ {[%emt 0:00:41]} Ke7 {[%emt 0:00:23]} 52. Nd5+ {[%emt 0:00:14]} Ke6 {[%emt 0:00:22]} 53. Nc7+ {[%emt 0:00:33]} Ke7 {[%emt 0:00:06]} 54. Bd5 {[%emt 0:00:41]} Rb1 {[%emt 0:04:07]} 55. Rd1 {[%emt 0:00:37]} Rb2+ {[%emt 0:00:15]} 56. Rd2 {[%emt 0:00:13]} Rb1 {[%emt 0:00:04]} 57. Rd1 {[%emt 0:00:19]} Rb2+ {[%emt 0:00:05]} 58. Rd2 {[%emt 0:00:10]} Rb1 {[%emt 0:00:08]} 1/2-1/2

[Event "EYCC 2017"]
[Site "Mamaia"]
[Date "2017.09.07"]
[Round "3"]
[White "Samunenkov, Igor"]
[Black "Bartodziej, Bartosz"]
[Result "1-0"]
[ECO "A48"]
[WhiteElo "1794"]
[BlackElo "1402"]
[Annotator "NA"]
[PlyCount "105"]
[EventDate "2017.??.??"]
[EventType "swiss"]
[EventCountry "ROU"]
[SourceTitle "playchess.com"]
[Source "ChessBase"]
[SourceQuality "1"]
[TimeControl "40/5400+30:1800+30"]

1. d4 Nf6 2. Bf4 g6 3. Nf3 Bg7 4. Nc3 O-O 5. Qd2 d5 6. Bh6 Nbd7 7. h4 Nb6 8. h5 Nc4 9. Qg5 Bxh6 10. Qxh6 Ng4 11. Qg5 e5 12. Qxd8 Rxd8 13. dxe5 Ncxe5 14. Nxe5 Nxe5 15. O-O-O Be6 16. e3 c6 17. Be2 Bf5 18. Rd4 Nd7 19. e4 dxe4 20. Rhd1 Rac8 21. g4 Be6 22. Nxe4 Kg7 23. Nc5 Rc7 24. hxg6 hxg6 25. Nxe6+ fxe6 26. Rd6 e5 27. Bc4 Kf8 28. Rxg6 a6 29. Rgd6 Ke7 30. g5 Rcc8 31. g6 Nf6 32. Rxd8 Rxd8 33. Rxd8 Kxd8 34. g7 Ke7 35. g8=Q Nxg8 36. Bxg8 Kf6 37. Kd2 Kf5 38. Ke3 c5 39. Bh7+ Ke6 40. Ke4 b6 41. Bf5+ Kd6 42. Bc8 a5 43. c4 a4 44. a3 b5 45. cxb5 c4 46. b6 c3 47. bxc3 Kc6 48. b7 Kc7 49. Kxe5 Kb8 50. Kd6 Ka7 51. Kc7 Ka6 52. b8=Q+ Ka5 53. Qb6# 1-0

[Event "EYCC 2017"]
[Site "Mamaia"]
[Date "2017.09.07"]
[Round "3"]
[White "Zvereva, Margarita"]
[Black "Sovina, Maria"]
[Result "1-0"]
[ECO "B47"]
[WhiteElo "1790"]
[BlackElo "1675"]
[Annotator "NA"]
[PlyCount "81"]
[EventDate "2017.??.??"]
[EventType "swiss"]
[EventCountry "ROU"]
[SourceTitle "playchess.com"]
[Source "ChessBase"]
[SourceQuality "1"]
[TimeControl "40/5400+30:1800+30"]

1. e4 {[%emt 0:00:00]} c5 {[%emt 0:00:03]} 2. Nf3 {[%emt 0:00:00]} Nc6 {[%emt 0:00:05]} 3. d4 {[%emt 0:00:00]} cxd4 {[%emt 0:00:06]} 4. Nxd4 {[%emt 0:00:00]} Qc7 {[%emt 0:00:05]} 5. Nc3 {[%emt 0:00:08]} e6 {[%emt 0:00:05]} 6. Be2 {[%emt 0:00:32]} a6 {[%emt 0:00:14]} 7. a4 {[%emt 0:03:50]} Nf6 {[%emt 0:02:26]} 8. O-O {[%emt 0:00:39]} Bb4 {[%emt 0:05:34]} 9. Bf3 {[%emt 0:12:16]} Ne5 {[%emt 0:13:56]} 10. Nb1 {[%emt 0:08:42]} Nxf3+ {[%emt 0:08:19]} 11. Nxf3 {[%emt 0:08:34]} b6 {[%emt 0:05:12]} 12. e5 {[%emt 0:08:36]} Nd5 {[%emt 0:01:17]} 13. c3 {[%emt 0:01:07]} Be7 {[%emt 0:01:24]} 14. Nbd2 {[%emt 0:06:49]} Bb7 {[%emt 0:06:52]} 15. Ne4 {[%emt 0:05:40]} Rc8 {[%emt 0:06:42]} 16. Bg5 {[%emt 0:07:16]} Bxg5 {[%emt 0:11:34]} 17. Nd6+ {[%emt 0:02:14]} Kf8 {[%emt 0:00:24]} 18. Nxc8 {[%emt 0:24:23]} Bxc8 {[%emt 0:02:26]} 19. Nxg5 {[%emt 0:00:09]} Qxe5 {[%emt 0:00:47]} 20. Nf3 {[%emt 0:00:44]} Qf4 {[%emt 0:02:24]} 21. c4 {[%emt 0:06:19]} Nf6 {[%emt 0:01:21]} 22. Qd4 {[%emt 0:01:39]} Qxd4 {[%emt 0:03:29]} 23. Nxd4 {[%emt 0:00:02]} Bb7 {[%emt 0:01:53]} 24. f3 {[%emt 0:00:43]} Ke7 {[%emt 0:01:14]} 25. Rac1 {[%emt 0:01:24]} Rc8 {[%emt 0:01:30]} 26. Rfe1 {[%emt 0:00:25]} g6 {[%emt 0:01:55]} 27. Nb3 {[%emt 0:00:40]} d6 {[%emt 0:03:05]} 28. a5 {[%emt 0:00:25]} Rc6 {[%emt 0:05:47]} 29. Nd4 {[%emt 0:00:19]} Rc8 {[%emt 0:00:26]} 30. axb6 {[%emt 0:00:07]} Nd7 {[%emt 0:00:12]} 31. Re3 {[%emt 0:00:45]} d5 {[%emt 0:00:58]} 32. c5 {[%emt 0:00:52]} Nxc5 {[%emt 0:01:09]} 33. Rec3 {[%emt 0:00:22]} e5 {[%emt 0:00:48]} 34. Rxc5 {[%emt 0:00:27]} Rxc5 {[%emt 0:01:35]} 35. Rxc5 {[%emt 0:00:06]} Kd6 {[%emt 0:00:07]} 36. Rc7 {[%emt 0:00:09]} exd4 {[%emt 0:00:05]} 37. Rxb7 {[%emt 0:00:13]} Kc6 {[%emt 0:00:03]} 38. Rb8 {[%emt 0:01:01]} d3 {[%emt 0:00:05]} 39. Kf2 {[%emt 0:00:15]} d2 {[%emt 0:00:03]} 40. Ke2 {[%emt 0:00:00]} Kd6 {[%emt 0:00:14]} 41. Rc8 {[%emt 0:00:24]} 1-0

[Event "EYCC 2017"]
[Site "Mamaia"]
[Date "2017.09.07"]
[Round "3"]
[White "Adamczyk, Zuzanna"]
[Black "Miroshnik, Ekaterina"]
[Result "0-1"]
[ECO "C06"]
[WhiteElo "1782"]
[BlackElo "2006"]
[Annotator "NA"]
[PlyCount "76"]
[EventDate "2017.??.??"]
[EventType "swiss"]
[EventCountry "ROU"]
[SourceTitle "playchess.com"]
[Source "ChessBase"]
[SourceQuality "1"]
[TimeControl "40/5400+30:1800+30"]

1. e4 {[%emt 0:00:00]} e6 {[%emt 0:00:04]} 2. d4 {[%emt 0:00:00]} d5 {[%emt 0:00:04]} 3. Nd2 {[%emt 0:00:00]} Nf6 {[%emt 0:00:06]} 4. e5 {[%emt 0:00:06]} Nfd7 {[%emt 0:00:04]} 5. Bd3 {[%emt 0:00:15]} c5 {[%emt 0:00:06]} 6. c3 {[%emt 0:00:11]} Nc6 {[%emt 0:00:03]} 7. Ne2 {[%emt 0:00:09]} cxd4 {[%emt 0:00:05]} 8. cxd4 {[%emt 0:00:19]} f6 {[%emt 0:00:07]} 9. Nf4 {[%emt 0:01:08]} Nxd4 {[%emt 0:00:18]} 10. Qh5+ {[%emt 0:00:35]} Ke7 {[%emt 0:00:06]} 11. exf6+ {[%emt 0:00:49]} Nxf6 {[%emt 0:08:37]} 12. Ng6+ {[%emt 0:00:52]} hxg6 {[%emt 0:00:30]} 13. Qxh8 {[%emt 0:00:17]} Kf7 {[%emt 0:00:15]} 14. O-O {[%emt 0:00:35]} e5 {[%emt 0:10:31]} 15. Nb3 {[%emt 0:02:11]} Nxb3 {[%emt 0:00:12]} 16. axb3 {[%emt 0:00:05]} Bf5 {[%emt 0:03:59]} 17. Bxf5 {[%emt 0:03:50]} gxf5 {[%emt 0:00:58]} 18. Bg5 {[%emt 0:00:39]} Bc5 {[%emt 0:09:27]} 19. Qh3 {[%emt 0:01:52]} Qd7 {[%emt 0:08:34]} 20. Bxf6 {[%emt 0:02:11]} Kxf6 {[%emt 0:00:26]} 21. Rad1 {[%emt 0:05:23]} Bb6 {[%emt 0:13:22]} 22. Rfe1 {[%emt 0:07:28]} Qe6 {[%emt 0:11:26]} 23. Rd3 {[%emt 0:17:47]} e4 {[%emt 0:07:06]} 24. g4 {[%emt 0:08:01]} Qe5 {[%emt 0:15:14]} 25. Qh4+ {[%emt 0:32:12]} Ke6 {[%emt 0:01:44]} 26. Qh5 {[%emt 0:01:55]} f4 {[%emt 0:05:45]} 27. Qg6+ {[%emt 0:05:53]} Qf6 {[%emt 0:00:24]} 28. Qh5 {[%emt 0:01:53]} Qe5 {[%emt 0:00:27]} 29. Qg6+ {[%emt 0:00:09]} Qf6 {[%emt 0:00:09]} 30. Qh5 {[%emt 0:00:04]} g5 {[%emt 0:00:44]} 31. h4 {[%emt 0:01:07]} Rh8 {[%emt 0:02:01]} 32. hxg5 {[%emt 0:03:05]} Qg7 {[%emt 0:01:46]} 33. g6 {[%emt 0:01:19]} Rxh5 {[%emt 0:00:06]} 34. gxh5 {[%emt 0:00:03]} Qxb2 {[%emt 0:00:38]} 35. Rf3 {[%emt 0:00:06]} Kf5 {[%emt 0:00:46]} 36. Rfe3 {[%emt 0:02:51]} fxe3 {[%emt 0:00:26]} 37. fxe3 {[%emt 0:00:05]} Kg4 {[%emt 0:00:34]} 38. Kf1 {[%emt 0:00:49]} Kf3 {[%emt 0:00:04]} 0-1

[Event "EYCC 2017"]
[Site "Mamaia"]
[Date "2017.09.07"]
[Round "3"]
[White "Mikhailina, Elena"]
[Black "Matasaru, Stephanie"]
[Result "0-1"]
[ECO "A10"]
[WhiteElo "1782"]
[BlackElo "1662"]
[Annotator "NA"]
[PlyCount "72"]
[EventDate "2017.??.??"]
[EventType "swiss"]
[EventCountry "ROU"]
[SourceTitle "playchess.com"]
[Source "ChessBase"]
[SourceQuality "1"]
[TimeControl "40/5400+30:1800+30"]

1. c4 {[%emt 0:00:00]} g6 {[%emt 0:00:44]} 2. g3 {[%emt 0:00:00]} Bg7 {[%emt 0:00:07]} 3. Bg2 {[%emt 0:00:00]} e5 {[%emt 0:01:39]} 4. e4 {[%emt 0:00:06]} d6 {[%emt 0:00:22]} 5. Nc3 {[%emt 0:00:18]} Ne7 {[%emt 0:00:21]} 6. Nge2 {[%emt 0:00:22]} O-O {[%emt 0:01:16]} 7. O-O {[%emt 0:00:07]} c6 {[%emt 0:01:12]} 8. d3 {[%emt 0:00:33]} f5 {[%emt 0:02:57]} 9. exf5 {[%emt 0:05:13]} Nxf5 {[%emt 0:01:30]} 10. Kh1 {[%emt 0:05:13]} Be6 {[%emt 0:08:18]} 11. f4 {[%emt 0:02:50]} Nd7 {[%emt 0:01:20]} 12. Qc2 {[%emt 0:08:46]} exf4 {[%emt 0:06:09]} 13. Bxf4 {[%emt 0:15:32]} Ne5 {[%emt 0:11:31]} 14. h3 {[%emt 0:06:31]} g5 {[%emt 0:07:05]} 15. Bd2 {[%emt 0:00:59]} g4 {[%emt 0:02:23]} 16. Kh2 {[%emt 0:02:36]} Qe8 {[%emt 0:14:20]} 17. Bf4 {[%emt 0:13:50]} Qh5 {[%emt 0:09:21]} 18. Ne4 {[%emt 0:16:07]} Nf3+ {[%emt 0:04:35]} 19. Bxf3 {[%emt 0:01:43]} Qxh3+ {[%emt 0:05:01]} 20. Kg1 {[%emt 0:00:00]} gxf3 {[%emt 0:00:27]} 21. Rxf3 {[%emt 0:00:00]} Bd4+ {[%emt 0:02:25]} 22. Nf2 {[%emt 0:02:24]} Nh4 {[%emt 0:03:27]} 23. gxh4 {[%emt 0:01:45]} Qxf3 {[%emt 0:00:27]} 24. Nxd4 {[%emt 0:00:58]} Qxf4 {[%emt 0:00:37]} 25. Nxe6 {[%emt 0:00:26]} Qg3+ {[%emt 0:00:17]} 26. Kf1 {[%emt 0:00:36]} Qh3+ {[%emt 0:00:30]} 27. Ke1 {[%emt 0:02:29]} Qxe6+ {[%emt 0:00:40]} 28. Kd1 {[%emt 0:00:23]} Rae8 {[%emt 0:01:41]} 29. Qd2 {[%emt 0:00:52]} Qe3 {[%emt 0:02:02]} 30. Qxe3 {[%emt 0:01:21]} Rxe3 {[%emt 0:00:10]} 31. Kd2 {[%emt 0:00:21]} Rg3 {[%emt 0:01:08]} 32. Ne4 {[%emt 0:00:13]} Rg2+ {[%emt 0:00:14]} 33. Kc3 {[%emt 0:00:06]} d5 {[%emt 0:01:30]} 34. Nc5 {[%emt 0:01:20]} dxc4 {[%emt 0:01:20]} 35. Kxc4 {[%emt 0:01:20]} Rc2+ {[%emt 0:00:56]} 36. Kd4 {[%emt 0:00:36]} Rd8+ {[%emt 0:00:13]} 0-1